[Event "GER-chT States Women 2022"]
[Site "Braunfels"]
[Date "2022.06.17"]
[Round "3.28"]
[White "Daemering, Katrin"]
[Black "Pavlov, Liliane"]
[Result "1-0"]
[ECO "B98"]
[WhiteElo "1966"]
[BlackElo "1742"]
[Annotator "TA"]
[PlyCount "117"]
[EventDate "2022.06.15"]
[EventType "swiss"]
[EventCountry "GER"]
[SourceTitle "playchess.com"]
[Source "ChessBase"]
[SourceQuality "1"]
[TimeControl "40/5400+30:1800+30"]

{[%evp 20,117,0,-5,38,5,0,0,0,-7,11,0,0,-8,0,0,21,0,56,15,75,17,69,47,52,8,9,3,31,29,58,30,39,40,55,44,52,50,59,56,106,0,338,341,399,170,375,175,184,187,193,79,174,152,145,150,160,0,7,0,11,0,352,344,622,613,1048,1054,1003,468,452,432,393,358,1072,470,666,679,639,623,616,553,874,527,920,902,29978,29975,29974,29974,29980,29981,29979,29980,29984,29985,29984,29985,29985,29986]} 1. e4 {[%emt 0:00:03]} c5 {[%emt 0:00:11]} 2. Nf3 {[%emt 0:00:10]} d6 {[%emt 0:00:11]} 3. d4 {[%emt 0:00:07]} cxd4 {[%emt 0:00:08]} 4. Nxd4 {[%emt 0:00:03]} Nf6 {[%emt 0:00:14]} 5. Nc3 {[%emt 0:00:10]} a6 {[%emt 0:00:06]} 6. Bg5 {[%emt 0:00:08]} e6 {[%emt 0:00:14]} 7. f4 {[%emt 0:00:08]} Be7 {[%emt 0:00:10]} 8. Qf3 {[%emt 0:00:11]} h6 {[%emt 0:08:35]} 9. Bxf6 {[%emt 0:03:54]} Bxf6 {[%emt 0:00:29]} 10. O-O-O {[%emt 0:01:39]} Qb6 {[%emt 0:04:58]} 11. Nb3 {[%emt 0:05:10]} Bd7 {[%emt 0:01:53] B98: Sicilian Najdorf: 6 Bg5 e6 7 f4 Be7, sidelines.} 12. Qd3 {[%emt 0:09:19]} Be7 {[%emt 0:01:11] [#]} 13. Kb1 $146 {[%emt 0:04:57]} ({Predecessor:} 13. Qd4 Qxd4 14. Nxd4 Nc6 15. Nce2 O-O 16. g3 Rfd8 17. Bg2 Rac8 18. Kb1 Bf6 19. Rd2 {0-1 (32) Gil Ojeda,J (1793)-Hernandez Leon,A (2277) Tenerife 2016}) 13... Nc6 {[%emt 0:04:37] The position is equal.} 14. Be2 {[%emt 0:06:42]} O-O-O {[%emt 0:05:29]} 15. Bf3 {[%emt 0:05:13]} Kb8 {[%emt 0:03:38]} 16. Rhe1 {[%emt 0:02:20]} g5 {[%emt 0:12:55]} 17. g3 {[%emt 0:00:47]} Qc7 {[%emt 0:07:11]} 18. Qe3 {[%emt 0:07:13]} b5 {[%emt 0:10:22]} (18... Na5 $11) 19. Rd2 {[%emt 0:11:24]} Bc8 {[%emt 0:02:47]} (19... Qa7 $11) 20. Red1 {[%emt 0:08:07]} ({Better is} 20. a4 $16) 20... Bb7 {[%emt 0:04:37]} (20... h5 $11) 21. a3 {[%emt 0:07:33]} Rhe8 {[%emt 0:03:03]} 22. Nd4 {[%emt 0:06:11]} Na5 {[%emt 0:05:56]} 23. Be2 {[%emt 0:03:19]} Nc4 {[%emt 0:03:28]} 24. Bxc4 {[%emt 0:00:08]} Qxc4 {[%emt 0:00:50]} 25. Nb3 {[%emt 0:02:02]} Qc7 {[%emt 0:02:04]} 26. Rd3 {[%emt 0:02:40]} Rc8 {[%emt 0:03:46]} 27. Qf2 {[%emt 0:06:48]} Rf8 {[%emt 0:02:43]} 28. Qe2 {[%emt 0:03:51]} Rg8 {[%emt 0:04:33]} 29. Qh5 {[%emt 0:01:01]} Rg6 {[%emt 0:05:35]} (29... Bf8 $14) 30. Qe2 {[%emt 0:00:30]} (30. f5 $16 exf5 31. exf5) 30... Rcg8 {[%emt 0:00:37][%mdl 8192]} (30... Rgg8 $1 $11 {and Black stays safe.}) 31. f5 $18 {[%emt 0:00:22]} R6g7 {[%emt 0:01:36]} 32. g4 {[%emt 0:00:25]} (32. e5 $142 {[%cal Re5d6]} d5 33. f6) 32... Re8 $2 {[%emt 0:00:22]} (32... Rh7 {was worth a try.}) 33. Qf2 {[%emt 0:00:24]} (33. e5 $142 {[%cal Re5d6]} d5 34. f6 Bxf6 35. exf6) 33... Rgg8 {[%emt 0:00:47]} 34. f6 {[%emt 0:00:31]} Bf8 {[%emt 0:00:22]} 35. Nd4 {[%emt 0:00:09]} (35. Na2 $1 $18 {is the precise move to win.}) 35... Rg6 {[%emt 0:00:55] [#]} (35... Rc8 $16) 36. Ndxb5 $1 {[%emt 0:01:47][%mdl 512]} axb5 {[%emt 0:00:13]} 37. Nxb5 {[%emt 0:00:05]} Qa5 {[%emt 0:01:12] [#] Inhibits Qa7+.} 38. Nxd6 {[%emt 0:01:08] 0x0.00166d5a2429dp-1022s more active pieces. The black rooks are badly placed.} (38. Rb3 $1 $16 Qa6 39. Nc3) 38... Bxd6 $11 {[%emt 0:00:15]} 39. Rxd6 {[%emt 0:00:02] Black must now prevent Rd7.} Rgg8 {[%emt 0:00:32]} 40. Qd4 {[%emt 0:01:34]} Qa7 $2 {[%emt 0:00:49][%mdl 8192] Black is now going downhill.} (40... Rc8 $11 {and Black is okay.}) 41. Qb4 $18 {[%emt 0:04:32]} Rc8 $2 {[%emt 0:05:36]} (41... Ka8 42. Rd7 Rb8 43. Rxf7 Rgc8) 42. Rd7 {[%emt 0:01:23]} Rc7 {[%emt 0:02:19]} 43. Rxc7 {[%emt 0:00:25]} Kxc7 {[%emt 0:00:04]} 44. Qe7+ {[%emt 0:00:15]} (44. Qd6+ $142 Kc8 45. Rd3 Qg1+ 46. Ka2) 44... Kb8 {[%emt 0:00:38]} 45. Qxf7 {[%emt 0:00:44]} Rc8 {[%emt 0:00:36]} 46. Qxe6 {[%emt 0:00:46]} Qa4 $2 {[%emt 0:02:39] [#]} (46... Qc5 47. Rd2 Qc6 48. Qxc6 Bxc6) 47. Qd6+ {[%emt 0:04:44]} (47. Qxc8+ $142 $3 {[%mdl 512]} Bxc8 48. f7) 47... Ka8 {[%emt 0:00:25]} (47... Ka7 $142 48. Qd4+ Qxd4 49. Rxd4 Re8) 48. f7 {[%emt 0:06:03]} Qxc2+ {[%emt 0:02:48]} 49. Ka1 {[%emt 0:00:02]} Qf2 {[%emt 0:02:16]} 50. Qe7 {[%emt 0:01:00]} Qf3 {[%emt 0:02:10]} 51. Qd7 {[%emt 0:04:59] Hoping for Rd4.} Qf4 {[%emt 0:05:46]} 52. Rd4 {[%emt 0:06:15]} Qf6 {[%emt 0:07:06]} 53. Ra4+ {[%emt 0:01:50] White mates.} Kb8 {[%emt 0:00:04]} 54. Rb4 {[%emt 0:01:56][%csl Gb4][%cal Rd7b7]} Rc7 {[%emt 0:01:19]} 55. Qe8+ {[%emt 0:00:08]} Rc8 {[%emt 0:00:10]} 56. e5 {[%emt 0:00:15][%cal Be4e5,Be5e6][%mdl 32]} Qd8 {[%emt 0:02:35]} 57. Qxd8 {[%emt 0:00:40]} Rxd8 {[%emt 0:00:01]} 58. e6 {[%emt 0:00:22]} Kc7 {[%emt 0:00:35] [#]} 59. Rxb7+ $1 {[%emt 0:00:28][%mdl 512] Weighted Error Value: White=0.56/Black=0.81} 1-0

[Event "GER-chT States Women 2022"]
[Site "Braunfels"]
[Date "2022.06.17"]
[Round "3.29"]
[White "Prinzen, Siri Marleen"]
[Black "Just, Anita"]
[Result "1/2-1/2"]
[ECO "A40"]
[WhiteElo "1744"]
[BlackElo "1895"]
[Annotator "NA RC"]
[PlyCount "136"]
[EventDate "2022.06.15"]
[EventType "swiss"]
[EventCountry "GER"]
[SourceTitle "playchess.com"]
[Source "ChessBase"]
[SourceQuality "1"]
[TimeControl "40/5400+30:1800+30"]

1. d4 {[%emt 0:00:02]} e6 {[%emt 0:00:04]} 2. Nf3 {[%emt 0:00:29]} f5 {[%emt 0:00:07]} 3. b3 {[%emt 0:00:29]} Nf6 {[%emt 0:00:41]} 4. Bb2 {[%emt 0:01:16]} Bb4+ {[%emt 0:00:54]} 5. c3 {[%emt 0:01:48]} Be7 {[%emt 0:00:06]} 6. Nbd2 {[%emt 0:00:33]} b6 {[%emt 0:01:12]} 7. e3 {[%emt 0:02:02]} Bb7 {[%emt 0:00:48]} 8. Bd3 {[%emt 0:01:09]} Ne4 {[%emt 0:04:26]} 9. Bxe4 {[%emt 0:08:05]} fxe4 {[%emt 0:01:06]} 10. Ne5 {[%emt 0:01:55]} O-O {[%emt 0:01:39]} 11. Qg4 {[%emt 0:03:44]} Rf5 {[%emt 0:07:23]} 12. f3 {[%emt 0:11:02]} d6 {[%emt 0:15:57]} 13. fxe4 {[%emt 0:04:40]} Rf6 {[%emt 0:00:27]} 14. Nd3 {[%emt 0:01:27]} Nd7 {[%emt 0:02:19]} 15. Nf4 {[%emt 0:05:48]} Nf8 {[%emt 0:03:42]} 16. O-O-O {[%emt 0:03:01]} Qe8 {[%emt 0:03:06]} 17. c4 {[%emt 0:04:47]} b5 {[%emt 0:06:47]} 18. c5 {[%emt 0:09:43]} a5 {[%emt 0:03:26]} 19. h4 {[%emt 0:07:37]} b4 {[%emt 0:05:51]} 20. h5 {[%emt 0:01:32]} Rh6 {[%emt 0:01:31]} 21. Qe2 {[%emt 0:04:21]} Bf6 {[%emt 0:03:14]} 22. g4 {[%emt 0:02:44]} dxc5 {[%emt 0:05:30]} 23. Rdg1 {[%emt 0:04:01]} Qe7 {[%emt 0:04:01]} 24. Nh3 {[%emt 0:01:26]} g5 {[%emt 0:05:30]} 25. hxg6 {[%emt 0:02:40]} Rxg6 {[%emt 0:01:04]} 26. Nf4 {[%emt 0:00:53]} Rg5 {[%emt 0:01:52]} 27. Nh3 {[%emt 0:01:30]} Rg7 {[%emt 0:01:28]} 28. Rh2 {[%emt 0:01:49]} cxd4 {[%emt 0:04:05]} 29. exd4 {[%emt 0:01:55]} Qd7 {[%emt 0:01:04]} 30. e5 {[%emt 0:02:34]} Be7 {[%emt 0:00:39]} 31. Nf4 {[%emt 0:01:06]} c5 {[%emt 0:01:27]} 32. Nh5 {[%emt 0:02:27]} Rf7 {[%emt 0:01:49]} 33. Ne4 {[%emt 0:00:42]} Ba6 {[%emt 0:03:11]} 34. Qd2 {[%emt 0:02:08]} Qc6 {[%emt 0:03:45]} 35. Nhf6+ {[%emt 0:00:55]} Kh8 {[%emt 0:00:53]} 36. Kb1 {[%emt 0:00:43]} c4 {[%emt 0:01:43]} 37. bxc4 {[%emt 0:02:33]} Bxf6 {[%emt 0:01:21]} 38. Nxf6 {[%emt 0:00:08]} Qxc4 {[%emt 0:00:19]} 39. Qh6 {[%emt 0:01:18]} Raa7 {[%emt 0:02:18]} 40. Rgh1 {[%emt 0:00:45]} Qd3+ {[%emt 0:01:30]} 41. Ka1 {[%emt 0:30:21]} a4 {[%emt 0:07:52]} 42. Rh3 {[%emt 0:00:00]} ({Much less strong is} 42. Qg5 $6 Rg7 43. Qd2 Qxd2 44. Rxd2 a3 $14) 42... Qg6 {[%emt 0:04:12]} 43. Qxg6 {[%emt 0:00:00]} Nxg6 {[%emt 0:00:08] [#]} 44. d5 $1 {[%emt 0:00:00]} Nf4 {[%emt 0:03:57]} 45. dxe6 {[%emt 0:00:00]} (45. R3h2 $18) 45... Nxe6 $2 {[%emt 0:00:40]} (45... Rg7 $16) 46. Bc1 {[%emt 0:00:00]} Bc4 {[%emt 0:05:46]} 47. g5 {[%emt 0:00:00]} Nf8 {[%emt 0:00:38]} 48. Rh4 {[%emt 0:00:00]} Rac7 {[%emt 0:01:30]} 49. Ne8 {[%emt 0:00:00]} Bd5 {[%emt 0:02:03]} 50. Nxc7 {[%emt 0:00:00]} Bxh1 51. Rxh1 {[%emt 0:00:00]} Rxc7 {[%emt 0:00:09]} 52. Bd2 {[%emt 0:00:00]} Rb7 {[%emt 0:02:12]} 53. Rh4 {[%emt 0:01:33]} Kg7 {[%emt 0:03:29]} 54. Rxb4 {[%emt 0:00:55]} Rxb4 {[%emt 0:01:03]} 55. Bxb4 {[%emt 0:00:01]} Ne6 {[%emt 0:00:18]} 56. Kb2 {[%emt 0:04:08]} Nxg5 {[%emt 0:01:12]} 57. Kc2 {[%emt 0:00:53]} Kf7 {[%emt 0:00:19]} 58. Kd3 {[%emt 0:01:06]} Ke6 {[%emt 0:00:41]} 59. Bc3 {[%emt 0:00:20]} Kd5 {[%emt 0:00:43]} 60. Bd2 {[%emt 0:01:36]} Nf3 {[%emt 0:02:27]} 61. Bf4 {[%emt 0:00:47]} Nxe5+ {[%emt 0:00:19]} 62. Kc3 {[%emt 0:00:05]} h5 $11 {[%emt 0:01:08]} (62... Ng6 $1 $15 63. Bg3 Kc5) 63. Bg3 {[%emt 0:00:43]} Nd7 {[%emt 0:01:04]} 64. Kb4 {[%emt 0:00:33]} Nc5 {[%emt 0:00:40]} 65. Bh4 {[%emt 0:00:51]} Kc6 {[%emt 0:01:12]} 66. Be7 {[%emt 0:00:57]} Ne4 {[%emt 0:00:19]} 67. Kxa4 {[%emt 0:00:21]} Nc3+ {[%emt 0:00:20]} (67... Kd7 $5 68. Bh4 Nd2 $11) 68. Kb3 {[%emt 0:00:11]} Nxa2 {[%emt 0:00:11]} 1/2-1/2

[Event "GER-chT States Women 2022"]
[Site "Braunfels"]
[Date "2022.06.17"]
[Round "3.30"]
[White "Lowke, Kathrin"]
[Black "Albayrak, Berrak"]
[Result "1-0"]
[ECO "B08"]
[WhiteElo "1850"]
[BlackElo "1569"]
[Annotator "NA RC"]
[PlyCount "53"]
[EventDate "2022.06.15"]
[EventType "swiss"]
[EventCountry "GER"]
[SourceTitle "playchess.com"]
[Source "ChessBase"]
[SourceQuality "1"]
[TimeControl "40/5400+30:1800+30"]

1. e4 {[%emt 0:00:04]} d6 {[%emt 0:00:05]} 2. d4 {[%emt 0:00:35]} Nf6 {[%emt 0:00:06]} 3. Nc3 {[%emt 0:00:22]} g6 {[%emt 0:00:07]} 4. Nf3 {[%emt 0:05:50]} Bg7 {[%emt 0:00:11]} 5. Be3 {[%emt 0:03:50]} O-O {[%emt 0:00:32]} 6. h3 {[%emt 0:02:32]} c6 {[%emt 0:02:31]} 7. Qd2 {[%emt 0:00:20]} Re8 {[%emt 0:00:54]} 8. O-O-O {[%emt 0:02:17]} Qc7 {[%emt 0:03:33]} 9. Bh6 {[%emt 0:01:27]} Bh8 {[%emt 0:00:25]} 10. Ng5 {[%emt 0:10:10]} b5 {[%emt 0:10:00]} 11. f4 {[%emt 0:02:54]} e5 {[%emt 0:09:04]} 12. d5 {[%emt 0:19:25]} b4 {[%emt 0:06:45]} 13. Ne2 {[%emt 0:07:35]} c5 {[%emt 0:07:23]} 14. Ng3 {[%emt 0:00:13]} a5 {[%emt 0:02:34]} 15. f5 {[%emt 0:03:38]} a4 {[%emt 0:04:46]} 16. fxg6 {[%emt 0:03:26]} hxg6 {[%emt 0:01:00]} 17. h4 {[%emt 0:03:03]} a3 {[%emt 0:05:56]} 18. b3 {[%emt 0:00:31]} Ba6 {[%emt 0:00:34]} 19. h5 {[%emt 0:01:04]} Bxf1 {[%emt 0:19:07]} 20. Rdxf1 {[%emt 0:00:47]} Na6 {[%emt 0:01:27]} 21. hxg6 {[%emt 0:00:26]} fxg6 {[%emt 0:00:24]} 22. Ne6 {[%emt 0:01:26]} Qf7 {[%emt 0:04:36]} 23. Bg5 {[%emt 0:02:21]} c4 {[%emt 0:07:27]} 24. Bxf6 {[%emt 0:00:42]} Bxf6 {[%emt 0:00:26]} 25. Qh6 {[%emt 0:02:45]} Rxe6 {[%emt 0:01:34]} 26. dxe6 {[%emt 0:00:25]} Qg7 {[%emt 0:01:06]} 27. Rxf6 {[%emt 0:00:47]} 1-0

[Event "GER-chT States Women 2022"]
[Site "Braunfels"]
[Date "2022.06.17"]
[Round "3.31"]
[White "Schilay, Maria"]
[Black "Kosovska, Olena"]
[Result "0-1"]
[ECO "B23"]
[WhiteElo "1568"]
[BlackElo "1827"]
[Annotator "NA RC"]
[PlyCount "68"]
[EventDate "2022.06.15"]
[EventType "swiss"]
[EventCountry "GER"]
[SourceTitle "playchess.com"]
[Source "ChessBase"]
[SourceQuality "1"]
[TimeControl "40/5400+30:1800+30"]

1. e4 {[%emt 0:00:04]} c5 {[%emt 0:00:06]} 2. Nc3 {[%emt 0:00:11]} a6 {[%emt 0:00:12]} 3. g3 {[%emt 0:00:13]} Nc6 {[%emt 0:00:08]} 4. Bg2 {[%emt 0:00:20]} d6 {[%emt 0:09:34]} 5. d3 {[%emt 0:00:26]} Nf6 {[%emt 0:00:13]} 6. h3 {[%emt 0:01:03]} e6 {[%emt 0:01:07]} 7. Be3 {[%emt 0:00:35]} Be7 {[%emt 0:00:19]} 8. Nge2 {[%emt 0:02:17]} Rb8 {[%emt 0:00:49]} 9. O-O {[%emt 0:02:56]} b5 {[%emt 0:08:23]} 10. f4 {[%emt 0:02:05]} Bb7 {[%emt 0:00:15]} 11. d4 {[%emt 0:05:50]} b4 {[%emt 0:06:23]} 12. Nb1 {[%emt 0:01:26]} O-O {[%emt 0:03:54]} 13. Nd2 {[%emt 0:06:54]} Qc7 {[%emt 0:03:05]} 14. Nb3 {[%emt 0:06:46]} Rfd8 {[%emt 0:02:41]} 15. Qe1 {[%emt 0:04:28]} c4 {[%emt 0:01:11]} 16. Nd2 {[%emt 0:04:38]} Na7 {[%emt 0:04:34]} 17. c3 {[%emt 0:11:50]} bxc3 {[%emt 0:01:49]} 18. Nxc3 {[%emt 0:01:58]} Ba8 {[%emt 0:00:16]} 19. Rb1 {[%emt 0:01:38]} Nb5 {[%emt 0:01:21]} 20. Qc1 {[%emt 0:02:36]} Rbc8 {[%emt 0:05:13]} 21. e5 {[%emt 0:10:55]} dxe5 {[%emt 0:01:09]} 22. dxe5 {[%emt 0:01:19]} Nd5 {[%emt 0:02:44]} 23. Nde4 {[%emt 0:10:34]} Nxe3 {[%emt 0:04:29]} 24. Qxe3 {[%emt 0:01:26]} Rd3 {[%emt 0:00:53]} 25. Qc1 {[%emt 0:07:40]} Nxc3 {[%emt 0:07:35]} 26. bxc3 {[%emt 0:03:28]} Qa5 {[%emt 0:00:56]} 27. Kh2 {[%emt 0:04:41]} Rcd8 {[%emt 0:06:49]} 28. Rb2 {[%emt 0:02:14]} Ba3 {[%emt 0:01:04]} 29. Rff2 {[%emt 0:01:51]} Bxe4 {[%emt 0:02:26]} 30. Bxe4 {[%emt 0:00:22]} Rxc3 {[%emt 0:03:01]} 31. Qb1 {[%emt 0:01:19]} Bxb2 {[%emt 0:00:21]} 32. Rxb2 {[%emt 0:00:14]} g6 {[%emt 0:01:36]} 33. Rg2 {[%emt 0:00:22]} Re3 {[%emt 0:01:48]} 34. Qc2 {[%emt 0:00:46]} c3 {[%emt 0:01:41]} 0-1

[Event "GER-chT States Women 2022"]
[Site "Braunfels"]
[Date "2022.06.17"]
[Round "3.32"]
[White "Neumeyer, Hannelore"]
[Black "Alferova, Emily"]
[Result "1-0"]
[ECO "D00"]
[WhiteElo "1877"]
[BlackElo "1536"]
[Annotator "NA RC"]
[PlyCount "63"]
[EventDate "2022.06.15"]
[EventType "swiss"]
[EventCountry "GER"]
[SourceTitle "playchess.com"]
[Source "ChessBase"]
[SourceQuality "1"]
[TimeControl "40/5400+30:1800+30"]

1. d4 {[%emt 0:00:06]} d5 {[%emt 0:00:05]} 2. e4 {[%emt 0:00:11]} dxe4 {[%emt 0:01:54]} 3. Nc3 {[%emt 0:00:14]} Nf6 {[%emt 0:02:01]} 4. f3 {[%emt 0:00:44]} exf3 {[%emt 0:00:30]} 5. Nxf3 {[%emt 0:00:20]} e6 {[%emt 0:02:24]} 6. Bd3 {[%emt 0:01:00]} Be7 {[%emt 0:03:50]} 7. Bg5 {[%emt 0:03:47]} h6 {[%emt 0:00:55]} 8. Bh4 {[%emt 0:01:46]} a6 {[%emt 0:06:33]} 9. Qd2 {[%emt 0:06:26]} Nc6 {[%emt 0:06:03]} 10. a3 {[%emt 0:08:52]} Bd7 {[%emt 0:07:00]} 11. O-O {[%emt 0:03:45]} O-O 12. Rae1 {[%emt 0:03:06]} Be8 {[%emt 0:29:59]} 13. Kh1 {[%emt 0:07:17]} Nd5 {[%emt 0:06:13]} 14. Bxe7 {[%emt 0:02:00]} Ncxe7 {[%emt 0:01:30]} 15. Nxd5 {[%emt 0:01:41]} Nxd5 {[%emt 0:01:27]} 16. c4 {[%emt 0:01:35]} Nf6 {[%emt 0:00:25]} 17. Ne5 {[%emt 0:08:11]} b6 {[%emt 0:07:20]} 18. Bb1 {[%emt 0:02:17]} c5 {[%emt 0:05:07]} 19. Qc2 {[%emt 0:12:22]} cxd4 {[%emt 0:04:23]} 20. Qd3 {[%emt 0:01:53]} g6 {[%emt 0:01:04]} 21. Rf4 {[%emt 0:08:26]} Nh5 {[%emt 0:01:43]} 22. Rxd4 {[%emt 0:08:22]} Qg5 {[%emt 0:03:57]} 23. Rg4 {[%emt 0:04:29]} Qf5 {[%emt 0:00:45]} 24. Qe3 {[%emt 0:01:41]} Qf6 $18 {[%emt 0:01:24]} 25. Qxh6 {[%emt 0:01:49]} Rd8 {[%emt 0:01:09]} 26. Qxh5 {[%emt 0:02:28]} Rd2 {[%emt 0:03:33]} 27. Nf3 {[%emt 0:06:29]} Rf2 {[%emt 0:01:04]} 28. Qe5 {[%emt 0:00:46]} Rxf3 {[%emt 0:01:30]} 29. gxf3 {[%emt 0:00:19]} Qxf3+ {[%emt 0:00:25]} 30. Rg2 {[%emt 0:00:20]} Bc6 {[%emt 0:00:39]} 31. Be4 {[%emt 0:01:34]} Bxe4 {[%emt 0:00:31]} 32. Qxe4 {[%emt 0:00:10]} 1-0

[Event "GER-chT States Women 2022"]
[Site "Braunfels"]
[Date "2022.06.17"]
[Round "3.33"]
[White "Rieping, Lea"]
[Black "Krasnopeyeva, Julia"]
[Result "1/2-1/2"]
[ECO "A45"]
[WhiteElo "1912"]
[BlackElo "1939"]
[Annotator "TA"]
[PlyCount "83"]
[EventDate "2022.06.15"]
[EventType "swiss"]
[EventCountry "GER"]
[SourceTitle "playchess.com"]
[Source "ChessBase"]
[SourceQuality "1"]
[TimeControl "40/5400+30:1800+30"]

{[%evp 9,83,-7,0,-23,-9,-14,7,-13,21,8,8,-16,-7,-37,-35,-198,-203,-203,-203,-198,-200,-202,-199,-200,-107,-98,-93,-116,-89,-95,-110,-178,-193,-144,-69,-58,-62,-52,0,-29,-19,-104,-34,-101,-104,-197,-141,-133,-134,-114,-45,-49,-33,-43,-6,-10,0,-12,0,-13,0,0,0,-105,0,-6,-5,-23,0,0,0,0,0,0,0,0]} 1. d4 {[%emt 0:00:02]} Nf6 {[%emt 0:00:05]} 2. Nc3 {[%emt 0:00:05]} d5 {[%emt 0:02:46]} 3. Bf4 {[%emt 0:00:06]} g6 {[%emt 0:01:39]} 4. Nb5 {[%emt 0:00:37]} Na6 {[%emt 0:01:04][%cal Bb8a6,Ba6c7,Bc7e6][%mdl 32]} 5. e3 {[%emt 0:00:15]} Nh5 {[%emt 0:03:49] [#]} 6. Bg5 $146 {[%emt 0:00:39] D00: 1 d4 d5: Unusual lines.} ({Predecessor:} 6. Qf3 Nxf4 7. Qxf4 Bg7 8. Nf3 O-O 9. h4 h5 10. Ne5 c5 11. Nc3 Nb4 12. O-O-O cxd4 13. Rxd4 Bxe5 14. Qxe5 {0-1 (55) Lloyd,J-Zhong,H (1867) Stillwater 2012}) 6... c6 {[%emt 0:02:14]} 7. Nc3 {[%emt 0:00:09]} Nc7 {[%emt 0:01:16]} 8. Be2 {[%emt 0:05:31]} Ng7 {[%emt 0:02:22]} 9. Nf3 {[%emt 0:01:07]} Nf5 {[%emt 0:05:08]} 10. h4 {[%emt 0:14:43]} Ne6 {[%emt 0:02:59]} 11. g4 {[%emt 0:03:53]} Nd6 {[%emt 0:03:51]} 12. Qd3 $2 {[%emt 0:06:53]} (12. h5 $1 $15) 12... h6 $19 {[%emt 0:02:58]} 13. Bf4 {[%emt 0:03:18]} Nxf4 {[%emt 0:00:19]} 14. exf4 {[%emt 0:00:03]} Bxg4 {[%emt 0:00:24]} 15. O-O-O {[%emt 0:00:12]} Bf5 {[%emt 0:00:54]} 16. Qe3 {[%emt 0:00:07]} Qc7 {[%emt 0:01:53]} (16... Bg7 17. h5 $17) (16... h5 $1 $19 17. Bd3 Bg7) 17. h5 $17 {[%emt 0:02:41]} O-O-O {[%emt 0:02:33]} 18. Ne5 {[%emt 0:00:19]} gxh5 {[%emt 0:04:47]} 19. Bxh5 {[%emt 0:01:44]} e6 {[%emt 0:04:09]} 20. Rhg1 {[%emt 0:02:55]} (20. Ne2 $17) 20... f6 $1 $19 {[%emt 0:01:38]} 21. Ng6 {[%emt 0:00:26]} Bxg6 {[%emt 0:01:02]} (21... Nc4 $17 22. Qf3 Qa5 $1 23. Nxf8 (23. Nxh8 $2 Ba3 $19) 23... Qb4) 22. Qxe6+ $15 {[%emt 0:08:54]} Kb8 {[%emt 0:00:28]} 23. Rxg6 {[%emt 0:00:22]} Ne8 {[%emt 0:05:04]} (23... Nc4 $1 $15 24. Rxf6 Qa5) 24. Rg4 {[%emt 0:19:26]} Bd6 {[%emt 0:04:20]} 25. Bxe8 {[%emt 0:00:54]} (25. Ne2 $1 $11 {remains equal.}) 25... Rdxe8 {[%emt 0:04:29]} (25... Bxf4+ $17 26. Kb1 Rdxe8 27. Qxf6 Ref8) 26. Qxf6 {[%emt 0:00:28]} (26. Qf5 $1 $15) 26... Ref8 {[%emt 0:00:13]} 27. Qh4 {[%emt 0:09:06] [#]} (27. Qg6 $17 {keeps fighting.}) 27... Bxf4+ {[%emt 0:00:27]} (27... h5 $1 $19 {[%cal Rh5g4]} 28. Rg6 Rxf4) 28. Kb1 $17 Bg5 {[%emt 0:01:40]} 29. Qh3 {[%emt 0:00:11]} Rhg8 {[%emt 0:02:32]} (29... Rxf2 $17 {And now ...Rhf8 would win.} 30. Na4 (30. Rxg5 $2 Rh2 $19) 30... Rhf8) 30. Rf1 $15 {[%emt 0:00:30]} Qf7 {[%emt 0:06:53]} 31. Ne2 {[%emt 0:02:39]} Qe7 {[%emt 0:04:18]} 32. Qh2+ {[%emt 0:01:37]} Kc8 {[%emt 0:06:41]} 33. f4 {[%emt 0:01:44] aiming for Rfg1.} Qe6 {[%emt 0:04:30]} 34. Rgg1 {[%emt 0:01:58]} Bd8 {[%emt 0:01:15][%cal Bg5d8,Bd8c7,Bc7f4][%mdl 32]} 35. Rxg8 {[%emt 0:02:51]} Rxg8 {[%emt 0:00:14]} 36. f5 {[%emt 0:00:58] [#]} (36. Nc1 $11) 36... Qf6 {[%emt 0:01:46]} ({Black should try} 36... Qe4 $1 $17 {Hoping for ...Rg2.} 37. Qe5 (37. f6 $2 Rg2 $19) 37... Rg2 38. Qxe4 dxe4) 37. Qe5 {[%emt 0:01:07]} Rf8 {[%emt 0:01:06]} 38. Qe3 {[%emt 0:08:21]} Bc7 {[%emt 0:03:16]} 39. Rh1 {[%emt 0:00:54] The position is equal.} Qxf5 {[%emt 0:02:54]} 40. Qxh6 {[%emt 0:00:17]} Re8 {[%emt 0:01:19]} 41. Nc1 {[%emt 0:05:16]} Bf4 {[%emt 0:04:27]} 42. Qg7 {[%emt 0:00:43] Weighted Error Value: White=0.30/Black=0.22 (precise)} 1/2-1/2